fUST/lending_fUST_20240208
["ID","MTS","AMOUNT","RATE_DAILY","PERIOD"]
[313468479,1707372632178,-563.21509038,0.00020893,2]
[313468481,1707372632187,-745.8695687,0.000209,2]
[313468483,1707372632196,-166.666666,0.00021918,2]
[313468485,1707372632210,-155.09305583,0.00022,2]
[313468487,1707372632219,-200.0,0.00022522,7]
[313468488,1707372632358,-166.666666,0.00022559,2]
[313468489,1707372632367,-2174.16,0.0002298,3]
[313468490,1707372632378,-4508.33,0.0002299,3]
[313468491,1707372632389,-3756.95,0.0002299,3]
[313468492,1707372632399,-3130.79,0.0002299,3]
[313468493,1707372632410,-2608.99,0.0002299,3]
[313468494,1707372632420,-200.0,0.00023,2]
[313468495,1707372632430,-19072.38880795,0.00023,2]
[313468496,1707372632440,-5941.66498953,0.00023,2]
[313468562,1707372641301,-155.09305583,0.00019235,3]
[313468563,1707372641311,-1804.90694433,0.00023,2]
[313468570,1707372643229,-2223.01561422,0.00023,2]
[313468571,1707372643239,-166.666666,0.000232,2]
[313468572,1707372643248,-166.666666,0.00023841,2]
[313468573,1707372643257,-240.97476906,0.00023878,2]
[313468574,1707372643267,-199.9537868,0.00024384,2]
[313468575,1707372643276,-199.9537868,0.00024384,2]
[313468576,1707372643285,-166.666666,0.00024482,2]
[313468577,1707372643294,-280.0,0.00024774,7]
[313468578,1707372643303,-363.6413084,0.000249,2]
[313468579,1707372643312,-4408.87861633,0.00025,2]
[313468580,1707372643321,-426.99310613,0.00025,2]
[313468581,1707372643330,-2172.22179058,0.00025,2]
[313468607,1707372646240,-185.0083529,0.00022999,2]
[313468608,1707372646249,-241.78781965,0.00024999,2]
[313468609,1707372646258,-11886.20383045,0.00025,2]
[313468712,1707373839099,-155.08684864,0.00019762,3]
[313468713,1707373839109,-155.08684864,0.00019763,2]
[313468714,1707373839119,-211.727018,0.00019765,2]
[313468715,1707373839129,-159.41555899,0.0002,2]
[313468716,1707373839163,-225.58444101,0.0002,2]
[313468717,1707373839173,-350.07175489,0.00020693,2]
[313468718,1707373839182,-145509.9459828,0.00020792,2]
[313468719,1707373839194,-46832.43455081,0.00020792,2]
[313468912,1707373841467,-1811.8,0.00020783,3]
[313468914,1707373841477,-16917.69748767,0.00020792,2]
[313468976,1707373843388,-4411.8678148,0.00020792,2]
[313468977,1707373843398,-12177.06832233,0.00020793,2]
[313468979,1707373843453,-12722.93167767,0.00020793,2]
[313468980,1707373843462,-25687.0383982,0.00020793,2]
[313468981,1707373843471,-200.1754723,0.00021122,2]
[313468982,1707373843480,-350.07175486,0.0002176,2]
[313468983,1707373843490,-641.36472867,0.00021919,2]
[313468984,1707373843499,-510.89370596,0.00022018,2]
[313468985,1707373843508,-479.84674693,0.00022018,2]
[313468986,1707373843517,-887.66487587,0.00022018,2]
[313468987,1707373843526,-500.0,0.00022018,2]
[313468988,1707373843535,-500.0,0.00022018,2]
[313468989,1707373843544,-466.08782316,0.00022018,2]
[313468990,1707373843554,-232.00422812,0.00022018,2]
[313468991,1707373843562,-500.0,0.00022018,2]
[313468992,1707373843572,-592.39024017,0.00022018,2]
[313468993,1707373843581,-500.0,0.00022018,2]
[313468994,1707373843589,-270.6775118,0.00022018,2]
[313468995,1707373843598,-887.66487587,0.00022018,2]
[313468996,1707373843607,-500.0,0.00022018,2]
[313468997,1707373843616,-887.66487587,0.00022018,2]
[313468998,1707373843625,-471.62554063,0.00022018,2]
[313468999,1707373843634,-500.0,0.00022018,2]
[313469000,1707373843643,-500.0,0.00022018,2]
[313469001,1707373843651,-500.0,0.00022018,2]
[313469002,1707373843660,-887.66487587,0.00022018,2]
[313469003,1707373843670,-887.66487587,0.00022018,2]
[313469004,1707373843678,-511.59546166,0.00022018,2]
[313469005,1707373843688,-887.66487587,0.00022018,2]
[313469006,1707373843697,-500.0,0.00022018,2]
[313469007,1707373843706,-515.21031646,0.00022018,2]
[313469008,1707373843715,-887.66487587,0.00022018,2]
[313469009,1707373843724,-500.0,0.00022018,2]
[313469011,1707373843733,-887.66487587,0.00022018,2]
[313469012,1707373843743,-500.0,0.00022018,2]
[313469013,1707373843752,-887.66487587,0.00022018,2]
[313469014,1707373843762,-887.66487587,0.00022018,2]
[313469015,1707373843773,-500.0,0.00022018,2]
[313469016,1707373843782,-887.66487587,0.00022018,2]
[313469017,1707373843791,-500.0,0.00022018,2]
[313469018,1707373843800,-887.66487587,0.00022018,2]
[313469019,1707373843809,-500.0,0.00022018,2]
[313469020,1707373843819,-887.66487587,0.00022018,2]
[313469021,1707373843827,-500.0,0.00022018,2]
[313469022,1707373843837,-887.66487587,0.00022018,2]
[313469023,1707373843846,-887.66487587,0.00022018,2]
[313469024,1707373843855,-500.0,0.00022018,2]
[313469026,1707373843864,-887.66487587,0.00022018,2]
[313469028,1707373843874,-887.66487587,0.00022018,2]
[313469029,1707373843883,-500.0,0.00022018,2]
[313469031,1707373843892,-887.66487587,0.00022018,2]
[313469033,1707373843901,-887.66487587,0.00022018,2]
[313469035,1707373843911,-500.0,0.00022018,2]
[313469036,1707373843920,-887.66487587,0.00022018,2]
[313469038,1707373843929,-887.66487587,0.00022018,2]
[313469039,1707373843938,-500.0,0.00022018,2]
[313469041,1707373843947,-887.66487587,0.00022018,2]
[313469042,1707373843956,-403.42686124,0.00022018,2]
[313469043,1707373843966,-887.66487587,0.00022018,2]
[313469044,1707373843975,-887.66487587,0.00022018,2]
[313469045,1707373843985,-887.66487587,0.00022018,2]
[313469046,1707373843994,-887.66487587,0.00022018,2]
[313469047,1707373844004,-500.0,0.00022018,2]
[313469048,1707373844013,-887.66487587,0.00022018,2]
[313469049,1707373844023,-887.66487587,0.00022018,2]
[313469050,1707373844032,-887.66487587,0.00022018,2]
[313469051,1707373844041,-500.0,0.00022018,2]
[313469052,1707373844053,-887.66487587,0.00022018,2]
[313469053,1707373844066,-887.66487587,0.00022018,2]
[313469054,1707373844079,-887.66487587,0.00022018,2]
[313469055,1707373844092,-887.66487587,0.00022018,2]
[313469056,1707373844104,-887.66487587,0.00022018,2]
[313469057,1707373844116,-887.66487587,0.00022018,2]
[313469058,1707373844126,-887.66487587,0.00022018,2]
[313469059,1707373844137,-887.66487587,0.00022018,2]
[313469060,1707373844150,-887.66487587,0.00022018,2]
[313469061,1707373844162,-887.66487587,0.00022018,2]
[313469062,1707373844175,-887.66487587,0.00022018,2]
[313469063,1707373844188,-887.66487587,0.00022018,2]
[313469064,1707373844201,-887.66487587,0.00022018,2]
[313469065,1707373844213,-887.66487587,0.00022018,2]
[313469066,1707373844225,-887.66487587,0.00022018,2]
[313469067,1707373844236,-887.66487587,0.00022018,2]
[313469068,1707373844246,-887.66487587,0.00022018,2]
[313469069,1707373844257,-887.66487587,0.00022018,2]
[313469070,1707373844270,-887.66487587,0.00022018,2]
[313469071,1707373844281,-887.66487587,0.00022018,2]
[313469072,1707373844292,-887.66487587,0.00022018,2]
[313469073,1707373844303,-887.66487587,0.00022018,2]
[313469074,1707373844314,-887.66487587,0.00022018,2]
[313469075,1707373844327,-887.66487587,0.00022018,2]
[313469076,1707373844340,-887.66487587,0.00022018,2]
[313469077,1707373844353,-887.66487587,0.00022018,2]
[313469078,1707373844363,-887.66487587,0.00022018,2]
[313469079,1707373844373,-887.66487587,0.00022018,2]
[313469080,1707373844384,-887.66487587,0.00022018,2]
[313469081,1707373844398,-887.66487587,0.00022018,2]
[313469082,1707373844411,-887.66487587,0.00022018,2]
[313469083,1707373844422,-887.66487587,0.00022018,2]
[313469084,1707373844436,-887.66487587,0.00022018,2]
[313469085,1707373844446,-887.66487587,0.00022018,2]
[313469086,1707373844458,-887.66487587,0.00022018,2]
[313469087,1707373844469,-887.66487587,0.00022018,2]
[313469088,1707373844480,-887.66487587,0.00022018,2]
[313469089,1707373844493,-887.66487587,0.00022018,2]
[313469090,1707373844504,-887.66487587,0.00022018,2]
[313469091,1707373844515,-887.66487587,0.00022018,2]
[313469092,1707373844528,-887.66487587,0.00022018,2]
[313469093,1707373844541,-39149.55513725,0.0002202,2]
[313469111,1707373848504,-9116.00000025,0.0002202,2]
[313469112,1707373848558,-821.6860893,0.0002202,2]
[313469121,1707374397900,155.07443573,0.00017379,3]
[313469122,1707374409900,155.07443573,0.00015729,2]
[313469123,1707374429901,155.07443573,0.00015729,2]
[313469124,1707374447990,155.07443573,0.00015639,2]
[313469125,1707374463906,155.07443573,0.00015635,2]
[313469126,1707374478236,155.07443573,0.00015639,2]
[313469127,1707374480291,622.58144826,0.00015639,2]
[313469128,1707374483905,155.07443573,0.00015631,2]
[313469129,1707374494199,622.75297577,0.00015639,2]
[313469130,1707374496231,155.07443573,0.00015639,2]
[313469131,1707374503899,155.07443573,0.00015634,2]
[313469132,1707374514241,190.79972612,0.00015639,2]
[313469133,1707374515598,-563.21509038,0.00017365,2]
[313469134,1707374515618,-563.21509038,0.00017365,2]
[313469135,1707374515630,-223.56981924,0.00017365,2]
[313469136,1707374525954,155.07443573,0.00015628,2]
[313469137,1707374547916,155.07443573,0.00015628,2]
[313469138,1707374567912,155.07443573,0.00015625,2]
[313469139,1707374568195,-4672.0,0.00017276,2]
[313469140,1707374587913,155.07443573,0.00015546,2]
[313469141,1707374596430,-1558.75149027,0.00017273,2]
[313469142,1707374596450,-294.57728151,0.00017274,2]
[313469143,1707374596459,-1264.17420876,0.00017274,2]
[313469144,1707374596471,-172.49701946,0.00017274,2]
[313469145,1707374603935,155.07443573,0.00015546,2]
[313469146,1707374623193,-1291.0,0.0001727,2]
[313469147,1707374623923,155.07443573,0.00015545,2]
[313469148,1707374626605,260.640889,0.00016275,2]
[313469149,1707374646002,155.07443573,0.00015545,2]
[313469150,1707374665924,155.07443573,0.00015539,2]
[313469151,1707374667526,-481.56201325,0.00017266,2]
[313469152,1707374667569,-155.07443573,0.00017266,2]
[313469153,1707374667599,-481.56201325,0.00017267,2]
[313469154,1707374667615,-155.07443573,0.00017267,2]
[313469155,1707374667630,-626.72710204,0.00017267,2]
[313469156,1707374687924,155.07443573,0.00015539,2]
[313469157,1707374709922,155.07443573,0.00015537,2]
[313469158,1707374731934,155.07443573,0.00015539,2]
[313469159,1707374748285,24900.0,0.00016264,2]
[313469160,1707374751963,155.07443573,0.00015536,2]
[313469162,1707374775937,155.07443573,0.00015531,2]
[313469163,1707374797939,155.07443573,0.0001553,2]
[313469164,1707374817966,155.07443573,0.0001553,2]
[313469169,1707374834667,621.2455937,0.00016259,2]
[313469174,1707374865663,285286.13570738,0.00016259,2]
[313469175,1707374889651,169841.27060297,0.00016259,2]
[313469239,1707375032664,-788.4887297,0.0001714,2]
[313469240,1707375032676,-899.71685043,0.0001714,2]
[313469242,1707375032686,-155.07443573,0.00017141,2]
[313469243,1707375032695,-557.19545546,0.00017141,2]
[313469245,1707375032705,-155.07443573,0.00017142,2]
[313469247,1707375032714,-1947.3753187,0.00017142,2]
[313469249,1707375032724,-19138.64568776,0.00017142,2]
[313469251,1707375032733,-20959.18700142,0.00017142,2]
[313469253,1707375032743,-481.56201325,0.00017143,2]
[313469255,1707375032752,-2467.49018674,0.00017143,2]
[313469257,1707375032762,-164.78879307,0.00017145,2]
[313469259,1707375032771,-396.73971064,0.00017157,2]
[313469261,1707375032780,-175.72920133,0.00017241,2]
[313469263,1707375032789,-9392.97703689,0.00017242,2]
[313469265,1707375032798,-71961.73159816,0.00017243,2]
[313469327,1707375040286,-339.28096265,0.00017139,2]
[313469328,1707375040298,-9053.69607424,0.00017139,2]
[313469329,1707375040307,-141710.21423792,0.00017243,2]
[313469330,1707375040317,-156.64486832,0.00017257,2]
[313469331,1707375040326,-156.20177159,0.00017266,2]
[313469332,1707375040335,-6191.13180326,0.00017267,2]
[313469333,1707375040344,-19574.4833575,0.00017272,2]
[313469334,1707375040353,-375.905843,0.00017273,2]
[313469335,1707375040362,-564.46592733,0.00017364,2]
[313469336,1707375040372,-155.69856866,0.00017364,2]
[313469337,1707375040381,-2110.10399171,0.0001748,2]
[313469338,1707375040391,-5854.11087692,0.00018,2]
[313469339,1707375040400,-396.73971063,0.00018346,2]
[313469340,1707375040411,-151.0,0.00018366,2]
[313469341,1707375040420,-155.10081553,0.00018492,2]
[313469342,1707375040429,-151.0,0.00018496,2]
[313469343,1707375040438,-151.0,0.00018496,2]
[313469344,1707375040447,-231.263188,0.00018496,2]
[313469345,1707375040457,-200.0,0.00018973,2]
[313469346,1707375040466,-168.853601,0.00019178,2]
[313469347,1707375040475,-151.0,0.00019485,2]
[313469348,1707375040484,-396.73971063,0.00019535,2]
[313469349,1707375040494,-2844.70657711,0.00019919,2]
[313469350,1707375040503,-1035.98449014,0.0001992,2]
[313469351,1707375040512,-680.94052688,0.0002,2]
[313469352,1707375040522,-155.08684864,0.0002,2]
[313469353,1707375040530,-155.11323266,0.0002,2]
[313469354,1707375040539,-1201.92575629,0.0002,2]
[313469355,1707375040549,-203.141148,0.00020222,2]
[313469356,1707375040558,-151.0,0.00020603,2]
[313469357,1707375040567,-155.40936483,0.00020684,2]
[313469358,1707375040576,-760.2052396,0.00020688,2]
[313469359,1707375040585,-396.73971063,0.00020723,2]
[313469360,1707375040595,-156.91323342,0.00020786,2]
[313469361,1707375040604,-8009.01768045,0.00020788,2]
[313469362,1707375040614,-156.12007282,0.00020788,2]
[313469363,1707375040623,-161.24931047,0.00020788,2]
[313469364,1707375040633,-225.98437194,0.00020788,2]
[313469365,1707375040643,-155.47942925,0.00020788,2]
[313469366,1707375040657,-300.24645218,0.00020788,2]
[313469367,1707375040668,-620.65905552,0.00020788,2]
[313469368,1707375040677,-160.31744674,0.00020788,2]
[313469369,1707375040687,-182.76612569,0.00020788,2]
[313469370,1707375040696,-157.58043391,0.00020788,2]
[313469371,1707375040706,-156.07637534,0.00020788,2]
[313469372,1707375040715,-155.4472219,0.00020788,2]
[313469373,1707375040725,-157.21431233,0.00020788,2]
[313469374,1707375040737,-156.97196981,0.00020788,2]
[313469375,1707375040747,-14968.67162864,0.00020788,2]
[313469376,1707375040756,-296.82661206,0.00020788,2]
[313469377,1707375040766,-155.55288547,0.00020788,2]
[313469378,1707375040775,-200.0,0.00020788,2]
[313469379,1707375040784,-708.32053656,0.00020788,2]
[313469380,1707375040793,-261.69062499,0.00020788,2]
[313469381,1707375040801,-200.99297603,0.00020788,2]
[313469382,1707375040811,-262.795041,0.00020788,2]
[313469383,1707375040820,-262.795041,0.00020788,2]
[313469384,1707375040829,-151.0,0.00020788,2]
[313469387,1707375040929,-151.0,0.00020788,2]
[313469388,1707375040938,-151.0,0.00020788,2]
[313469389,1707375040947,-151.0,0.00020788,2]
[313469390,1707375040956,-151.0,0.00020788,2]
[313469391,1707375040965,-151.0,0.00020788,2]
[313469392,1707375040974,-151.0,0.00020788,2]
[313469393,1707375040983,-5195.639304,0.00020788,2]
[313469394,1707375040993,-5195.639304,0.00020788,2]
[313469395,1707375041002,-5195.639304,0.00020788,2]
[313469397,1707375041011,-5195.639304,0.00020788,2]
[313469398,1707375041020,-2037.395923,0.00020788,2]
[313469399,1707375041029,-2037.395923,0.00020788,2]
[313469400,1707375041038,-632.976748,0.00020788,2]
[313469401,1707375041046,-632.976748,0.00020788,2]
[313469402,1707375041055,-151.0,0.00020788,2]
[313469403,1707375041065,-168.05200428,0.00020789,2]
[313469404,1707375041074,-167.12620684,0.00020789,2]
[313469405,1707375041083,-500.0,0.00020822,2]
[313469406,1707375041092,-500.0,0.00020822,2]
[313469407,1707375041101,-500.0,0.00020822,2]
[313469408,1707375041111,-500.0,0.00020822,2]
[313469409,1707375041120,-451.73424992,0.00020822,2]
[313469410,1707375041129,-500.0,0.00020822,2]
[313469411,1707375041139,-500.0,0.00020822,2]
[313469412,1707375041147,-500.0,0.00020822,2]
[313469413,1707375041157,-500.0,0.00020822,2]
[313469414,1707375041166,-500.0,0.00020822,2]
[313469415,1707375041175,-500.0,0.00020822,2]
[313469416,1707375041184,-361.77129464,0.00020822,2]
[313469417,1707375041193,-174.00739868,0.00020822,2]
[313469418,1707375041202,-500.0,0.00020822,2]
[313469419,1707375041211,-560.53007039,0.00020822,2]
[313469420,1707375041220,-500.0,0.00020822,2]
[313469421,1707375041229,-500.0,0.00020822,2]
[313469422,1707375041238,-500.0,0.00020822,2]
[313469423,1707375041247,-500.0,0.00020822,2]
[313469424,1707375041255,-500.0,0.00020822,2]
[313469425,1707375041265,-500.0,0.00020822,2]
[313469426,1707375041274,-475.03176024,0.00020822,2]
[313469427,1707375041283,-500.0,0.00020822,2]
[313469428,1707375041292,-500.0,0.00020822,2]
[313469429,1707375041301,-500.0,0.00020822,2]
[313469430,1707375041311,-500.0,0.00020822,2]
[313469431,1707375041320,-500.0,0.00020822,2]
[313469432,1707375041329,-500.0,0.00020822,2]
[313469433,1707375041338,-500.0,0.00020822,2]
[313469434,1707375041347,-500.0,0.00020822,2]
[313469435,1707375041356,-500.0,0.00020822,2]
[313469436,1707375041365,-394.80544679,0.00020822,2]
[313469437,1707375041374,-500.0,0.00020822,2]
[313469438,1707375041384,-500.0,0.00020822,2]
[313469439,1707375041393,-500.0,0.00020822,2]
[313469440,1707375041402,-500.0,0.00020822,2]
[313469441,1707375041412,-336.78065943,0.00020822,2]
[313469442,1707375041421,-500.0,0.00020822,2]
[313469443,1707375041430,-500.0,0.00020822,2]
[313469444,1707375041439,-500.0,0.00020822,2]
[313469445,1707375041448,-500.0,0.00020822,2]
[313469446,1707375041457,-500.0,0.00020822,2]
[313469447,1707375041466,-500.0,0.00020822,2]
[313469448,1707375041475,-500.0,0.00020822,2]
[313469449,1707375041484,-500.0,0.00020822,2]
[313469450,1707375041494,-500.0,0.00020822,2]
[313469451,1707375041503,-500.0,0.00020822,2]
[313469452,1707375041512,-500.0,0.00020822,2]
[313469453,1707375041522,-500.0,0.00020822,2]
[313469454,1707375041531,-500.0,0.00020822,2]
[313469455,1707375041540,-500.0,0.00020822,2]
[313469456,1707375041549,-500.0,0.00020822,2]
[313469457,1707375041558,-500.0,0.00020822,2]
[313469458,1707375041568,-500.0,0.00020822,2]
[313469459,1707375041577,-500.0,0.00020822,2]
[313469460,1707375041587,-500.0,0.00020822,2]
[313469461,1707375041596,-500.0,0.00020822,2]
[313469462,1707375041605,-500.0,0.00020822,2]
[313469463,1707375041614,-500.0,0.00020822,2]
[313469464,1707375041623,-500.0,0.00020822,2]
[313469465,1707375041633,-500.0,0.00020822,2]
[313469466,1707375041643,-500.0,0.00020822,2]
[313469467,1707375041655,-500.0,0.00020822,2]
[313469468,1707375041665,-500.0,0.00020822,2]
[313469469,1707375041674,-500.0,0.00020822,2]
[313469470,1707375041683,-500.0,0.00020822,2]
[313469471,1707375041692,-500.0,0.00020822,2]
[313469472,1707375041702,-500.0,0.00020822,2]
[313469473,1707375041711,-500.0,0.00020822,2]
[313469474,1707375041721,-500.0,0.00020822,2]
[313469475,1707375041731,-556.6025887,0.00020822,2]
[313469476,1707375041741,-500.0,0.00020822,2]
[313469477,1707375041751,-500.0,0.00020822,2]
[313469478,1707375041760,-500.0,0.00020822,2]
[313469479,1707375041769,-499.99999999,0.00020822,2]
[313469480,1707375041778,-151.0,0.00020822,2]
[313469481,1707375041787,-151.0,0.00020822,2]
[313469482,1707375041796,-262.795041,0.00020822,2]
[313469483,1707375041805,-262.795041,0.00020822,2]
[313469484,1707375041814,-151.0,0.00020822,2]
[313469486,1707375041824,-151.0,0.00020822,2]
[313469488,1707375041833,-151.0,0.00020822,2]
[313469490,1707375041842,-151.0,0.00020822,2]
[313469492,1707375041852,-151.0,0.00020822,2]
[313469493,1707375041861,-151.0,0.00020822,2]
[313469495,1707375041870,-151.0,0.00020822,2]
[313469496,1707375041880,-5195.639304,0.00020822,2]
[313469497,1707375041889,-5195.639304,0.00020822,2]
[313469498,1707375041898,-5195.639304,0.00020822,2]
[313469499,1707375041907,-5195.639304,0.00020822,2]
[313469500,1707375041916,-2037.395923,0.00020822,2]
[313469501,1707375041925,-2037.395923,0.00020822,2]
[313469502,1707375041934,-2037.395923,0.00020822,2]
[313469503,1707375041943,-2037.395923,0.00020822,2]
[313469504,1707375041952,-632.976748,0.00020822,2]
[313469505,1707375041961,-632.976748,0.00020822,2]
[313469506,1707375041970,-632.976748,0.00020822,2]
[313469507,1707375041979,-632.976748,0.00020822,2]
[313469508,1707375041988,-151.0,0.00020822,2]
[313469509,1707375041997,-151.0,0.00020822,2]
[313469511,1707375042006,-280.0,0.0002087,2]
[313469513,1707375042015,-151.0,0.00021721,2]
[313469514,1707375042024,-396.73971063,0.00021912,2]
[313469515,1707375042033,-168.256816,0.00021918,2]
[313469516,1707375042042,-3998.0860109,0.00022,2]
[313469517,1707375042051,-326.48350937,0.00022,2]
[313469518,1707375042060,-432.18375591,0.00022,2]
[313469519,1707375042070,-262.795041,0.00022,2]
[313469520,1707375042078,-262.795041,0.00022,2]
[313469521,1707375042087,-151.0,0.00022,2]
[313469522,1707375042096,-151.0,0.00022,2]
[313469523,1707375042105,-50000.0,0.00022012,2]
[313469524,1707375042114,-151.0,0.00022012,2]
[313469525,1707375042123,-5195.639304,0.00022012,2]
[313469526,1707375042133,-5195.639304,0.00022012,2]
[313469527,1707375042142,-2037.395923,0.00022012,2]
[313469528,1707375042151,-2037.395923,0.00022012,2]
[313469529,1707375042160,-632.976748,0.00022012,2]
[313469530,1707375042169,-632.976748,0.00022012,2]
[313469531,1707375042178,-151.0,0.00022012,2]
[313469532,1707375042188,-14055.01208893,0.00022016,2]
[313469533,1707375042197,-151.0,0.00022016,2]
[313469534,1707375042206,-151.0,0.00022016,2]
[313469535,1707375042216,-151.0,0.00022016,2]
[313469536,1707375042225,-151.0,0.00022016,2]
[313469537,1707375042233,-189.210203,0.00022016,2]
[313469538,1707375042242,-912.7587732,0.0002202,2]
[313469539,1707375042251,-235.55549047,0.0002202,2]
[313469540,1707375042260,-155.59938255,0.0002202,2]
[313469541,1707375042269,-1000.40633568,0.0002202,2]
[313469542,1707375042279,-203.897029,0.0002202,2]
[313469543,1707375042288,-200.0,0.0002202,2]
[313469544,1707375042297,-300.0,0.0002202,2]
[313469545,1707375042306,-1831.79022935,0.0002202,2]
[313469546,1707375042316,-2091.03843255,0.0002202,2]
[313469547,1707375042325,-155.887864,0.0002202,2]
[313469548,1707375042334,-262.795041,0.0002202,2]
[313469549,1707375042342,-262.795041,0.0002202,2]
[313469550,1707375042351,-262.795041,0.0002202,2]
[313469551,1707375042361,-262.795041,0.0002202,2]
[313469552,1707375042370,-151.0,0.0002202,2]
[313469553,1707375042379,-153.958395,0.0002202,2]
[313469554,1707375042388,-245.0,0.0002202,2]
[313469555,1707375042397,-151.0,0.0002202,2]
[313469556,1707375042407,-278.986258,0.0002202,2]
[313469557,1707375042416,-5195.639304,0.0002202,2]
[313469558,1707375042425,-5195.639304,0.0002202,2]
[313469559,1707375042434,-5195.639304,0.0002202,2]
[313469560,1707375042443,-5195.639304,0.0002202,2]
[313469561,1707375042452,-2037.395923,0.0002202,2]
[313469562,1707375042462,-2037.395923,0.0002202,2]
[313469563,1707375042471,-2037.395923,0.0002202,2]
[313469564,1707375042481,-2037.395923,0.0002202,2]
[313469565,1707375042491,-632.976748,0.0002202,2]
[313469566,1707375042500,-632.976748,0.0002202,2]
[313469567,1707375042509,-632.976748,0.0002202,2]
[313469568,1707375042518,-632.976748,0.0002202,2]
[313469569,1707375042527,-169.29307845,0.000225,2]
[313469570,1707375042537,-151.0,0.0002284,2]
[313469571,1707375042546,-391.0,0.00022957,7]
[313469572,1707375042556,-1263.33437611,0.00023,2]
[313469573,1707375042565,-9969.58754808,0.00023,2]
[313469574,1707375042574,-262.795041,0.00023,2]
[313469575,1707375042584,-262.795041,0.00023,2]
[313469576,1707375042593,-151.0,0.00023,2]
[313469577,1707375042602,-5195.639304,0.00023,2]
[313469578,1707375042611,-5195.639304,0.00023,2]
[313469579,1707375042620,-2037.395923,0.00023,2]
[313469580,1707375042629,-2037.395923,0.00023,2]
[313469581,1707375042639,-632.976748,0.00023,2]
[313469582,1707375042648,-632.976748,0.00023,2]
[313469583,1707375042661,-262.795041,0.00023007,2]
[313469584,1707375042671,-262.795041,0.00023007,2]
[313469585,1707375042680,-50000.0,0.00023008,2]
[313469586,1707375042689,-262.795041,0.00023008,2]
[313469587,1707375042700,-262.795041,0.00023008,2]
[313469588,1707375042709,-151.0,0.00023008,2]
[313469589,1707375042719,-5195.639304,0.00023008,2]
[313469590,1707375042729,-5195.639304,0.00023008,2]
[313469591,1707375042738,-2037.395923,0.00023008,2]
[313469592,1707375042747,-2037.395923,0.00023008,2]
[313469593,1707375042756,-632.976748,0.00023008,2]
[313469594,1707375042765,-632.976748,0.00023008,2]
[313469595,1707375042774,-760.20523954,0.00023036,2]
[313469596,1707375042783,-168.256816,0.000232,2]
[313469597,1707375042792,-163.537019,0.00023502,2]
[313469598,1707375042801,-151.0,0.00023958,2]
[313469599,1707375042810,-168.256816,0.00024482,2]
[313469600,1707375042820,-1035.98449014,0.0002492,2]
[313469601,1707375042829,-863.79224786,0.00024955,2]
[313469602,1707375042838,-7805.84378098,0.00024997,2]
[313469603,1707375042847,-262.795041,0.00024997,2]
[313469604,1707375042856,-262.795041,0.00024997,2]
[313469605,1707375042866,-151.0,0.00024997,2]
[313469606,1707375042876,-5195.639304,0.00024997,2]
[313469607,1707375042885,-5195.639297,0.00024997,2]
[313469608,1707375042895,-2037.395923,0.00024997,2]
[313469609,1707375042905,-2037.395923,0.00024997,2]
[313469610,1707375042914,-632.976748,0.00024997,2]
[313469611,1707375042923,-632.976748,0.00024997,2]
[313469612,1707375042932,-19175.51555748,0.00024998,2]
[313469613,1707375042941,-262.795041,0.00024998,2]
[313469614,1707375042950,-262.795033,0.00024998,2]
[313469615,1707375042959,-2037.395923,0.00024998,2]
[313469616,1707375042968,-2037.395922,0.00024998,2]
[313469617,1707375042977,-632.976748,0.00024998,2]
[313469618,1707375042986,-632.976738,0.00024998,2]
[313469619,1707375042995,-191.20900587,0.00024999,2]
[313469620,1707375043004,-3253.88603195,0.00025,2]
[313469621,1707375043014,-155.09305583,0.00025,2]
[313469623,1707375043023,-4739.06901527,0.00025,2]
[313469624,1707375043032,-769.19993593,0.00025,2]